[Event "41st Bangladesh U-20 Girls 2023"]
[Site "Dhaka"]
[Date "2023.12.25"]
[Round "1.1"]
[White "Nusrat Jahan, Alo"]
[Black "Khondakar Aneeka, Mowla"]
[Result "1-0"]
[ECO "C50"]
[WhiteElo "1778"]
[BlackElo "1127"]
[Annotator "NA COMBH"]
[PlyCount "49"]
[EventDate "2023.12.24"]
[EventType "swiss"]
[EventCountry "BAN"]
[SourceTitle "playchess.com"]
[Source "ChessBase"]
[SourceQuality "1"]
[TimeControl "5400+30"]

1. e4 {[%emt 0:00:30]} e5 {[%emt 0:00:30]} 2. Nf3 {[%emt 0:00:30]} Nc6 {[%emt 0:00:30]} 3. Bc4 {[%emt 0:00:30]} Be7 {[%emt 0:00:30]} 4. d4 {[%emt 0:00:30]} Bf6 {[%emt 0:00:30]} 5. d5 {[%emt 0:02:24]} Na5 {[%emt 0:01:05]} 6. Bd3 {[%emt 0:00:48]} b6 {[%emt 0:00:35]} 7. O-O {[%emt 0:06:58]} Ne7 {[%emt 0:02:48]} 8. Nc3 {[%emt 0:09:00]} O-O {[%emt 0:01:39]} 9. Ne2 {[%emt 0:00:17]} d6 {[%emt 0:03:10]} 10. Ng3 {[%emt 0:02:19]} c6 {[%emt 0:08:44]} 11. Nh5 {[%emt 0:04:39]} cxd5 {[%emt 0:09:19]} 12. Nxf6+ {[%emt 0:04:27]} gxf6 {[%emt 0:00:25]} 13. exd5 {[%emt 0:02:26]} Nxd5 {[%emt 0:05:19]} 14. Be4 {[%emt 0:01:22]} Ba6 {[%emt 0:03:46]} 15. Re1 {[%emt 0:03:03]} Nc3 {[%emt 0:09:46]} 16. bxc3 {[%emt 0:00:27]} Rc8 {[%emt 0:00:45]} 17. Bh6 {[%emt 0:00:33]} Re8 {[%emt 0:00:23]} 18. Nh4 {[%emt 0:00:55]} Kh8 {[%emt 0:01:27]} 19. Qg4 {[%emt 0:00:20]} Rg8 {[%emt 0:00:22]} 20. Qf5 {[%emt 0:00:05]} Rg6 {[%emt 0:00:15]} 21. Nxg6+ {[%emt 0:01:49]} fxg6 {[%emt 0:00:10]} 22. Qh3 {[%emt 0:01:31]} Qc7 {[%emt 0:04:55]} 23. Qe6 {[%emt 0:02:24]} f5 {[%emt 0:02:52]} 24. Qf6+ {[%emt 0:00:44]} Kg8 {[%emt 0:00:12]} 25. Bd5+ {[%emt 0:00:07]} 1-0

[Event "41st Bangladesh U-20 Girls 2023"]
[Site "Dhaka"]
[Date "2023.12.25"]
[Round "1.2"]
[White "Suraiya Akther, Salma"]
[Black "Wadifa, Ahmed"]
[Result "0-1"]
[ECO "B40"]
[WhiteElo "1062"]
[BlackElo "1758"]
[Annotator "NA RC"]
[PlyCount "126"]
[EventDate "2023.12.24"]
[EventType "swiss"]
[EventCountry "BAN"]
[SourceTitle "playchess.com"]
[Source "ChessBase"]
[SourceQuality "1"]
[TimeControl "5400+30"]

1. e4 {[%emt 0:00:03]} c5 {[%emt 0:00:05]} 2. Nf3 {[%emt 0:00:36]} e6 {[%emt 0:00:05]} 3. d3 {[%emt 0:02:39]} Nc6 {[%emt 0:00:08]} 4. a3 {[%emt 0:00:39]} g6 {[%emt 0:01:30]} 5. c3 {[%emt 0:01:13]} Bg7 {[%emt 0:01:17]} 6. Be3 {[%emt 0:01:06]} b6 {[%emt 0:01:41]} 7. g3 {[%emt 0:01:16]} Nge7 {[%emt 0:00:52]} 8. Bg2 {[%emt 0:02:29]} O-O {[%emt 0:01:54]} 9. Nbd2 {[%emt 0:01:31]} h6 {[%emt 0:01:24]} 10. Nc4 {[%emt 0:00:46]} d5 {[%emt 0:00:13]} 11. exd5 {[%emt 0:02:47]} exd5 {[%emt 0:04:27]} 12. Ncd2 {[%emt 0:01:42]} Nf5 {[%emt 0:01:45]} 13. O-O {[%emt 0:04:49]} Bb7 {[%emt 0:03:22]} 14. Nb3 {[%emt 0:02:45]} Nxe3 {[%emt 0:15:17]} 15. fxe3 {[%emt 0:00:36]} Re8 {[%emt 0:00:31]} 16. Re1 {[%emt 0:01:34]} Qd7 {[%emt 0:01:53]} 17. d4 {[%emt 0:03:21]} c4 {[%emt 0:05:03]} 18. Nbd2 {[%emt 0:01:32]} Ne7 {[%emt 0:06:46]} 19. Re2 {[%emt 0:02:55]} Qg4 {[%emt 0:05:55]} 20. Qf1 {[%emt 0:01:22]} Qd7 {[%emt 0:04:08]} 21. Bh3 {[%emt 0:03:30]} Qc7 {[%emt 0:01:58]} 22. Rae1 {[%emt 0:02:33]} f5 {[%emt 0:00:44]} 23. Rf2 {[%emt 0:01:11]} Rad8 {[%emt 0:02:51]} 24. Nh4 {[%emt 0:07:17]} Bc8 {[%emt 0:00:49]} 25. Qg2 {[%emt 0:04:40]} Bf6 {[%emt 0:04:57]} 26. Kh1 {[%emt 0:05:30]} Kh7 {[%emt 0:02:30]} 27. Nhf3 {[%emt 0:03:41]} g5 {[%emt 0:00:49]} 28. g4 {[%emt 0:01:14]} fxg4 {[%emt 0:12:38]} 29. Bxg4 {[%emt 0:00:42]} Ng6 {[%emt 0:02:31]} 30. Bh5 {[%emt 0:02:12]} Rg8 {[%emt 0:01:34]} 31. e4 {[%emt 0:00:42]} Nf4 {[%emt 0:00:17]} 32. Qg3 {[%emt 0:01:52]} Qd7 {[%emt 0:16:36]} 33. Bg6+ {[%emt 0:07:07]} Rxg6 {[%emt 0:00:00]} 34. Re3 {[%emt 0:01:53]} Qg4 {[%emt 0:00:00]} 35. Qxg4 {[%emt 0:00:39]} Bxg4 {[%emt 0:00:00]} 36. e5 {[%emt 0:00:54]} Bg7 {[%emt 0:00:00]} 37. Ng1 {[%emt 0:01:17]} Be6 {[%emt 0:00:00]} 38. h4 {[%emt 0:03:41]} Nd3 {[%emt 0:00:00]} 39. Rh2 {[%emt 0:01:13]} g4 {[%emt 0:00:00]} 40. h5 {[%emt 0:00:48]} Rg5 {[%emt 0:00:00]} 41. Nf1 {[%emt 0:00:49]} Rf5 {[%emt 0:00:00]} 42. Ng3 {[%emt 0:01:08]} Rf2 {[%emt 0:00:00]} 43. Rxf2 {[%emt 0:02:13]} Nxf2+ {[%emt 0:00:00]} 44. Kh2 {[%emt 0:01:15]} Rf8 {[%emt 0:00:00]} 45. Re1 {[%emt 0:02:21]} Nd3 {[%emt 0:00:00]} 46. Re2 {[%emt 0:01:29]} Rf2+ {[%emt 0:00:00]} 47. Rxf2 {[%emt 0:00:49]} Nxf2 {[%emt 0:00:00]} 48. N1e2 {[%emt 0:00:39]} Nd3 {[%emt 0:00:00]} 49. Kg2 {[%emt 0:00:55]} Kg8 {[%emt 0:00:00]} 50. Nf1 {[%emt 0:01:22]} Nxb2 {[%emt 0:00:00]} 51. Nf4 {[%emt 0:00:33]} Kf7 {[%emt 0:00:00]} 52. Ne3 {[%emt 0:00:24]} Na4 {[%emt 0:00:00]} 53. Nd1 {[%emt 0:00:52]} Bf8 {[%emt 0:00:00]} 54. Ng6 {[%emt 0:01:28]} Bxa3 {[%emt 0:00:06]} 55. Nh8+ {[%emt 0:00:12]} Kg7 {[%emt 0:11:24]} 56. Ng6 {[%emt 0:00:14]} Bc1 {[%emt 0:00:30]} 57. Ne7 {[%emt 0:01:19]} Bd2 {[%emt 0:00:00]} 58. Nc6 {[%emt 0:00:40]} Nxc3 {[%emt 0:00:00]} 59. Nxc3 {[%emt 0:00:16]} Bxc3 {[%emt 0:00:00]} 60. Nd8 {[%emt 0:01:06]} Bf5 {[%emt 0:00:00]} 61. e6 {[%emt 0:00:16]} Kf6 {[%emt 0:00:00]} 62. Nf7 {[%emt 0:00:35]} Bxe6 {[%emt 0:00:00]} 63. Nxh6 {[%emt 0:00:23]} Kg5 {[%emt 0:00:00]} 0-1

[Event "41st Bangladesh U-20 Girls 2023"]
[Site "Dhaka"]
[Date "2023.12.25"]
[Round "2.1"]
[White "Israt Jahan, Nishi"]
[Black "Nusrat Jahan, Alo"]
[Result "0-1"]
[ECO "B40"]
[WhiteElo "1283"]
[BlackElo "1778"]
[Annotator "NA RC"]
[PlyCount "100"]
[EventDate "2023.12.24"]
[EventType "swiss"]
[EventCountry "BAN"]
[SourceTitle "playchess.com"]
[Source "ChessBase"]
[SourceQuality "1"]
[TimeControl "5400+30"]

1. e4 {[%emt 1:31:00]} c5 {[%emt 0:00:15]} 2. Nf3 {[%emt 0:00:00]} e6 {[%emt 0:00:10]} 3. Bb5 {[%emt 0:00:00]} a6 {[%emt 0:00:07]} 4. Bd3 {[%emt 0:00:00]} b5 {[%emt 0:00:07]} 5. c4 {[%emt 0:00:00]} b4 {[%emt 0:00:31]} 6. O-O {[%emt 0:00:00]} Bb7 {[%emt 0:03:10]} 7. a3 {[%emt 0:00:00]} Nc6 {[%emt 0:00:36]} 8. Be2 {[%emt 0:00:00]} d5 {[%emt 0:00:46]} 9. exd5 {[%emt 0:00:00]} exd5 {[%emt 0:00:19]} 10. d4 {[%emt 0:00:00]} cxd4 {[%emt 0:09:31]} 11. Nxd4 {[%emt 0:00:00]} Nf6 {[%emt 0:05:07]} 12. Bg5 {[%emt 0:00:00]} h6 {[%emt 0:08:04]} 13. Bh4 {[%emt 0:00:00]} Be7 {[%emt 0:02:37]} 14. axb4 {[%emt 0:00:00]} Nxb4 {[%emt 0:11:15]} 15. Bxf6 {[%emt 0:00:00]} gxf6 {[%emt 0:00:25]} 16. Qa4+ {[%emt 0:00:00]} Qd7 {[%emt 0:03:17]} 17. Qxd7+ {[%emt 0:00:00]} Kxd7 {[%emt 0:00:16]} 18. Nc3 {[%emt 0:00:00]} dxc4 {[%emt 0:08:55]} 19. Bxc4 {[%emt 0:00:00]} Ke8 {[%emt 0:01:47]} 20. Rfe1 {[%emt 0:00:00]} Kf8 {[%emt 0:02:08]} 21. Ra4 {[%emt 0:00:00]} Rg8 {[%emt 0:07:46]} 22. g3 {[%emt 0:00:00]} Bc5 {[%emt 0:01:47]} 23. Nf5 {[%emt 0:00:00]} Rg6 {[%emt 0:14:46]} 24. Ne4 {[%emt 0:00:00]} Bxe4 {[%emt 0:04:03]} 25. Rxe4 {[%emt 0:00:00]} a5 {[%emt 0:00:54]} 26. Bb5 {[%emt 0:00:00]} Rg5 {[%emt 0:00:57]} 27. Rf4 {[%emt 0:00:00]} Bb6 {[%emt 0:01:32]} 28. h4 {[%emt 0:00:00]} Rxf5 {[%emt 0:04:24]} 29. Rxf5 {[%emt 0:00:00]} Kg7 {[%emt 0:00:18]} 30. Bc4 {[%emt 0:00:00]} Rb8 {[%emt 0:01:06]} 31. b3 {[%emt 0:00:00]} Nc6 {[%emt 0:00:53]} 32. Bb5 {[%emt 0:00:00]} Nd4 {[%emt 0:00:58]} 33. Rd5 {[%emt 0:00:00]} Nxb5 {[%emt 0:00:23]} 34. Rg4+ {[%emt 0:00:00]} Kh7 {[%emt 0:01:03]} 35. Rd7 {[%emt 0:00:00]} Bd4 {[%emt 0:03:58]} 36. Rdxd4 {[%emt 0:00:00]} Nxd4 {[%emt 0:00:06]} 37. Rxd4 {[%emt 0:00:00]} Rxb3 {[%emt 0:00:07]} 38. Ra4 {[%emt 0:00:00]} Rb5 {[%emt 0:00:07]} 39. Kg2 {[%emt 0:00:00]} Kg6 {[%emt 0:00:16]} 40. g4 {[%emt 0:00:00]} f5 {[%emt 0:00:26]} 41. gxf5+ {[%emt 0:00:00]} Kxf5 {[%emt 0:00:06]} 42. Kg3 {[%emt 0:00:00]} Ke5 {[%emt 0:00:22]} 43. f4+ {[%emt 0:00:00]} Kf5 {[%emt 0:00:30]} 44. Rc4 {[%emt 0:00:00]} Rb3+ {[%emt 0:00:10]} 45. Kf2 {[%emt 0:00:00]} Kg4 {[%emt 0:00:09]} 46. Rc6 {[%emt 0:00:00]} h5 {[%emt 0:00:14]} 47. Rc5 {[%emt 0:00:00]} Rf3+ {[%emt 0:00:17]} 48. Ke2 {[%emt 0:00:00]} Rxf4 {[%emt 0:00:06]} 49. Rxa5 {[%emt 0:00:00]} Kxh4 {[%emt 0:00:07]} 50. Ra4 {[%emt 0:00:00]} Rxa4 {[%emt 0:00:12]} 0-1

[Event "41st Bangladesh U-20 Girls 2023"]
[Site "Dhaka"]
[Date "2023.12.25"]
[Round "2.2"]
[White "Wadifa, Ahmed"]
[Black "Rimjhim, Borosha Shaili"]
[Result "1-0"]
[ECO "B13"]
[WhiteElo "1758"]
[BlackElo "1216"]
[Annotator "NA RC"]
[PlyCount "113"]
[EventDate "2023.12.24"]
[EventType "swiss"]
[EventCountry "BAN"]
[SourceTitle "playchess.com"]
[Source "ChessBase"]
[SourceQuality "1"]
[TimeControl "5400+30"]

1. e4 {[%emt 0:03:32]} c6 {[%emt 0:00:07]} 2. d4 {[%emt 0:00:23]} d5 {[%emt 0:00:07]} 3. exd5 {[%emt 0:00:04]} cxd5 {[%emt 0:00:08]} 4. Bd3 {[%emt 0:00:04]} Nc6 {[%emt 0:00:22]} 5. c3 {[%emt 0:00:12]} Nf6 {[%emt 0:03:08]} 6. Bf4 {[%emt 0:01:12]} Bg4 {[%emt 0:00:52]} 7. f3 {[%emt 0:02:24]} Bh5 {[%emt 0:00:58]} 8. Ne2 {[%emt 0:00:19]} Bg6 {[%emt 0:06:38]} 9. O-O {[%emt 0:03:46]} Bxd3 {[%emt 0:04:50]} 10. Qxd3 {[%emt 0:00:13]} g6 {[%emt 0:01:59]} 11. Na3 {[%emt 0:05:40]} a6 {[%emt 0:03:55]} 12. Nc2 {[%emt 0:00:59]} Bg7 {[%emt 0:00:44]} 13. Qd2 {[%emt 0:00:59]} O-O {[%emt 0:00:17]} 14. Bh6 {[%emt 0:00:34]} e5 {[%emt 0:06:13]} 15. Bxg7 {[%emt 0:02:26]} Kxg7 {[%emt 0:00:12]} 16. dxe5 {[%emt 0:00:13]} Nxe5 {[%emt 0:00:16]} 17. Qd4 {[%emt 0:00:47]} Nc4 {[%emt 0:01:41]} 18. b3 {[%emt 0:00:20]} Qb6 {[%emt 0:00:15]} 19. bxc4 {[%emt 0:00:08]} Qxd4+ {[%emt 0:13:22]} 20. Nexd4 {[%emt 0:00:41]} dxc4 {[%emt 0:00:26]} 21. Rfb1 {[%emt 0:00:21]} b5 {[%emt 0:03:35]} 22. a4 {[%emt 0:00:24]} Nd5 {[%emt 0:02:14]} 23. Ne2 {[%emt 0:05:08]} Rab8 {[%emt 0:11:27]} 24. axb5 {[%emt 0:00:30]} Rxb5 {[%emt 0:02:22]} 25. Rxb5 {[%emt 0:00:15]} axb5 {[%emt 0:00:22]} 26. Rb1 {[%emt 0:01:56]} Rb8 {[%emt 0:00:42]} 27. Nb4 {[%emt 0:00:12]} Nb6 {[%emt 0:17:24]} 28. Nc6 {[%emt 0:00:53]} Ra8 {[%emt 0:09:32]} 29. Rxb5 {[%emt 0:01:07]} Ra2 {[%emt 0:00:17]} 30. Rxb6 {[%emt 0:00:27]} Rxe2 {[%emt 0:00:19]} 31. Rb4 {[%emt 0:00:02]} Re8 {[%emt 0:02:04]} 32. Rxc4 {[%emt 0:00:11]} Rc8 {[%emt 0:00:31]} 33. Ne5 {[%emt 0:00:03]} Rxc4 {[%emt 0:01:04]} 34. Nxc4 {[%emt 0:00:02]} Kf6 {[%emt 0:00:49]} 35. Kf2 {[%emt 0:00:07]} Ke6 {[%emt 0:01:32]} 36. Ke3 {[%emt 0:00:02]} Kd5 {[%emt 0:00:22]} 37. Kd3 {[%emt 0:00:07]} h5 {[%emt 0:00:47]} 38. h4 {[%emt 0:00:05]} f5 {[%emt 0:01:05]} 39. f4 {[%emt 0:00:04]} Ke6 {[%emt 0:04:55]} 40. Ne5 {[%emt 0:00:02]} Kd5 {[%emt 0:01:13]} 41. c4+ {[%emt 0:00:02]} Kc5 {[%emt 0:00:03]} 42. Nxg6 {[%emt 0:00:07]} Kd6 {[%emt 0:01:44]} 43. Kd4 {[%emt 0:00:05]} Kc6 {[%emt 0:00:05]} 44. c5 {[%emt 0:00:02]} Kc7 {[%emt 0:00:55]} 45. Kd5 {[%emt 0:00:02]} Kd7 {[%emt 0:00:01]} 46. c6+ {[%emt 0:00:01]} Kc7 {[%emt 0:00:02]} 47. Kc5 {[%emt 0:00:50]} Kc8 {[%emt 0:00:15]} 48. Kd6 {[%emt 0:00:05]} Kd8 {[%emt 0:01:22]} 49. c7+ {[%emt 0:00:01]} Kc8 {[%emt 0:00:50]} 50. Ne7+ {[%emt 0:00:03]} Kb7 {[%emt 0:00:02]} 51. c8=Q+ {[%emt 0:00:06]} Ka7 {[%emt 0:00:04]} 52. Qc5+ {[%emt 0:00:15]} Kb7 {[%emt 0:00:06]} 53. Qb5+ {[%emt 0:00:28]} Ka7 {[%emt 0:00:12]} 54. Nc8+ {[%emt 0:00:05]} Ka8 {[%emt 0:00:06]} 55. Ne7 {[%emt 0:00:13]} Ka7 {[%emt 0:00:04]} 56. Nc6+ {[%emt 0:00:04]} Ka8 {[%emt 0:00:05]} 57. Qa6# {[%emt 0:00:05]} 1-0

[Event "41st Bangladesh U-20 Girls 2023"]
[Site "Dhaka"]
[Date "2023.12.26"]
[Round "3.1"]
[White "Nusrat Jahan, Alo"]
[Black "Jannatul, Preety"]
[Result "1-0"]
[ECO "B13"]
[WhiteElo "1778"]
[BlackElo "1465"]
[Annotator "NA"]
[PlyCount "99"]
[EventDate "2023.12.24"]
[EventType "swiss"]
[EventCountry "BAN"]
[SourceTitle "playchess.com"]
[Source "ChessBase"]
[SourceQuality "1"]
[TimeControl "5400+30"]

1. e4 {[%emt 0:00:04]} c6 {[%emt 0:00:07]} 2. d4 {[%emt 0:00:10]} d5 {[%emt 0:00:05]} 3. exd5 {[%emt 0:00:07]} cxd5 {[%emt 0:00:07]} 4. Bd3 {[%emt 0:00:11]} Nf6 {[%emt 0:00:37]} 5. h3 {[%emt 0:00:28]} Nc6 {[%emt 0:00:33]} 6. Nf3 {[%emt 0:01:42]} e6 {[%emt 0:01:53]} 7. c3 {[%emt 0:00:39]} h6 {[%emt 0:01:40]} 8. Bf4 {[%emt 0:03:08]} Bd6 {[%emt 0:04:47]} 9. Bxd6 {[%emt 0:02:55]} Qxd6 {[%emt 0:00:07]} 10. O-O {[%emt 0:00:09]} O-O {[%emt 0:01:21]} 11. Re1 {[%emt 0:00:41]} Bd7 {[%emt 0:06:39]} 12. Ne5 {[%emt 0:01:35]} Rac8 {[%emt 0:05:14]} 13. Bc2 {[%emt 0:03:52]} Qc7 {[%emt 0:07:41]} 14. Na3 {[%emt 0:04:22]} Ne7 {[%emt 0:21:12]} 15. Qd3 {[%emt 0:07:06]} g6 {[%emt 0:02:29]} 16. Qf3 {[%emt 0:12:36]} Kg7 {[%emt 0:03:24]} 17. Rad1 {[%emt 0:04:20]} Qb6 {[%emt 0:07:22]} 18. Qxf6+ {[%emt 0:00:53]} Kxf6 {[%emt 0:01:42]} 19. Nxd7+ {[%emt 0:02:00]} Kg7 {[%emt 0:00:33]} 20. Nxb6 {[%emt 0:00:29]} axb6 {[%emt 0:00:08]} 21. Nb5 {[%emt 0:00:30]} Rfd8 {[%emt 0:00:57]} 22. a4 {[%emt 0:00:46]} Nc6 {[%emt 0:00:38]} 23. Bd3 {[%emt 0:01:51]} Ra8 {[%emt 0:00:56]} 24. Ra1 {[%emt 0:03:09]} Na5 {[%emt 0:01:02]} 25. Ra3 {[%emt 0:02:14]} Rdc8 {[%emt 0:00:51]} 26. Rea1 {[%emt 0:03:41]} Kf8 {[%emt 0:02:46]} 27. b4 {[%emt 0:00:39]} Nc4 {[%emt 0:00:40]} 28. Bxc4 {[%emt 0:00:26]} Rxc4 {[%emt 0:00:35]} 29. a5 {[%emt 0:00:42]} bxa5 {[%emt 0:01:28]} 30. Rxa5 {[%emt 0:00:19]} Rb8 {[%emt 0:01:03]} 31. Ra8 {[%emt 0:02:36]} Rcc8 {[%emt 0:00:07]} 32. Nc7 {[%emt 0:00:38]} Ke7 {[%emt 0:00:50]} 33. Rxb8 {[%emt 0:00:10]} Rxb8 {[%emt 0:00:05]} 34. Ra8 {[%emt 0:00:10]} Rxa8 {[%emt 0:00:14]} 35. Nxa8 {[%emt 0:00:06]} Kd6 {[%emt 0:00:54]} 36. Nb6 {[%emt 0:00:06]} Kc6 {[%emt 0:00:42]} 37. Na4 {[%emt 0:00:09]} Kb5 {[%emt 0:00:11]} 38. Nb2 {[%emt 0:00:35]} f6 {[%emt 0:00:28]} 39. f4 {[%emt 0:00:13]} g5 {[%emt 0:00:15]} 40. g3 {[%emt 0:00:11]} Kc6 {[%emt 0:00:31]} 41. Kf2 {[%emt 0:00:10]} Kd6 {[%emt 0:00:09]} 42. Ke3 {[%emt 0:00:11]} gxf4+ {[%emt 0:00:35]} 43. gxf4 {[%emt 0:00:10]} e5 {[%emt 0:00:07]} 44. fxe5+ {[%emt 0:00:08]} fxe5 {[%emt 0:00:10]} 45. dxe5+ {[%emt 0:00:26]} Kxe5 {[%emt 0:00:04]} 46. Nd3+ {[%emt 0:00:14]} Kf5 {[%emt 0:00:35]} 47. Kd4 {[%emt 0:02:05]} Kg5 {[%emt 0:00:40]} 48. Kxd5 {[%emt 0:00:08]} Kh4 {[%emt 0:00:06]} 49. Nf4 {[%emt 0:00:04]} Kg3 {[%emt 0:00:19]} 50. Ke4 {[%emt 0:00:04]} 1-0

[Event "41st Bangladesh U-20 Girls 2023"]
[Site "Dhaka"]
[Date "2023.12.26"]
[Round "3.2"]
[White "Neelava, Choudhury"]
[Black "Wadifa, Ahmed"]
[Result "0-1"]
[ECO "B48"]
[WhiteElo "1505"]
[BlackElo "1758"]
[Annotator "NA"]
[PlyCount "62"]
[EventDate "2023.12.24"]
[EventType "swiss"]
[EventCountry "BAN"]
[SourceTitle "playchess.com"]
[Source "ChessBase"]
[SourceQuality "1"]
[TimeControl "5400+30"]

1. e4 {[%emt 0:00:53]} c5 {[%emt 0:00:42]} 2. Nf3 {[%emt 0:00:11]} e6 {[%emt 0:00:07]} 3. d4 {[%emt 0:00:04]} cxd4 {[%emt 0:00:04]} 4. Nxd4 {[%emt 0:00:10]} Nc6 {[%emt 0:00:03]} 5. Nc3 {[%emt 0:00:14]} Qc7 {[%emt 0:00:07]} 6. Be3 {[%emt 0:00:14]} a6 {[%emt 0:00:06]} 7. Qf3 {[%emt 0:00:04]} Nf6 {[%emt 0:00:41]} 8. O-O-O {[%emt 0:00:10]} Bb4 {[%emt 0:06:40]} 9. Nxc6 {[%emt 0:15:02]} bxc6 {[%emt 0:23:19]} 10. Bg5 {[%emt 0:04:45]} Qe5 {[%emt 0:09:44]} 11. Bxf6 {[%emt 0:11:30]} gxf6 {[%emt 0:02:46]} 12. Ne2 {[%emt 0:03:07]} Rb8 {[%emt 0:04:40]} 13. Qf4 {[%emt 0:02:49]} Qxf4+ {[%emt 0:04:20]} 14. Nxf4 {[%emt 0:00:16]} Bb7 {[%emt 0:04:13]} 15. Bc4 {[%emt 0:03:31]} d5 {[%emt 0:01:47]} 16. exd5 {[%emt 0:00:43]} cxd5 {[%emt 0:00:03]} 17. Bb3 {[%emt 0:01:47]} Ke7 {[%emt 0:03:34]} 18. c3 {[%emt 0:01:17]} Bd6 {[%emt 0:00:35]} 19. Ne2 {[%emt 0:01:29]} Rhd8 {[%emt 0:03:40]} 20. Nd4 {[%emt 0:02:02]} Rbc8 {[%emt 0:03:16]} 21. Rhe1 {[%emt 0:02:44]} Kf8 {[%emt 0:00:34]} 22. Kb1 {[%emt 0:02:03]} e5 {[%emt 0:03:52]} 23. Nf5 {[%emt 0:01:05]} Bc5 {[%emt 0:00:39]} 24. Ne3 {[%emt 0:08:16]} d4 {[%emt 0:04:18]} 25. Ng4 {[%emt 0:03:25]} Kg7 {[%emt 0:02:13]} 26. f4 {[%emt 0:11:07]} e4 {[%emt 0:05:46]} 27. cxd4 {[%emt 0:01:56]} Bxd4 {[%emt 0:02:12]} 28. Rc1 {[%emt 0:09:51]} Rxc1+ {[%emt 0:01:26]} 29. Rxc1 {[%emt 0:00:17]} h5 {[%emt 0:00:26]} 30. Rc7 {[%emt 0:01:07]} Bd5 {[%emt 0:00:15]} 31. Rc2 {[%emt 0:01:02]} Bxb3 {[%emt 0:00:54]} 0-1

[Event "41st Bangladesh U-20 Girls 2023"]
[Site "Dhaka"]
[Date "2023.12.27"]
[Round "4.1"]
[White "Warsia, Khusbu"]
[Black "Nusrat Jahan, Alo"]
[Result "1/2-1/2"]
[ECO "B33"]
[WhiteElo "1661"]
[BlackElo "1778"]
[Annotator "NA"]
[PlyCount "98"]
[EventDate "2023.12.24"]
[EventType "swiss"]
[EventCountry "BAN"]
[SourceTitle "playchess.com"]
[Source "ChessBase"]
[SourceQuality "1"]
[TimeControl "5400+30"]

1. e4 {[%emt 0:00:02]} c5 {[%emt 0:00:05]} 2. Nf3 {[%emt 0:00:11]} Nc6 {[%emt 0:00:05]} 3. d4 {[%emt 0:00:04]} cxd4 {[%emt 0:00:06]} 4. Nxd4 {[%emt 0:00:02]} Nf6 {[%emt 0:00:08]} 5. Nc3 {[%emt 0:00:01]} e5 {[%emt 0:00:10]} 6. Ndb5 {[%emt 0:00:10]} d6 {[%emt 0:00:06]} 7. Bg5 {[%emt 0:00:07]} a6 {[%emt 0:00:07]} 8. Na3 {[%emt 0:00:05]} b5 {[%emt 0:00:04]} 9. Nd5 {[%emt 0:00:03]} Be7 {[%emt 0:00:10]} 10. Bxf6 {[%emt 0:00:02]} Bxf6 {[%emt 0:00:10]} 11. c4 {[%emt 0:00:04]} Nd4 {[%emt 0:02:04]} 12. cxb5 {[%emt 0:12:03]} Qa5+ {[%emt 0:01:26]} 13. Qd2 {[%emt 0:00:29]} axb5 {[%emt 0:02:23]} 14. Qxa5 {[%emt 0:05:00]} Rxa5 {[%emt 0:00:08]} 15. Bxb5+ {[%emt 0:00:02]} Kd8 {[%emt 0:07:26]} 16. Bd3 {[%emt 0:01:26]} Be6 {[%emt 0:01:46]} 17. Nc4 {[%emt 0:03:36]} Rb5 {[%emt 0:14:14]} 18. Nde3 {[%emt 0:15:28]} Kd7 {[%emt 0:11:12]} 19. b3 {[%emt 0:01:09]} Ra8 {[%emt 0:08:59]} 20. O-O {[%emt 0:00:25]} Ke7 {[%emt 0:03:01]} 21. Rfd1 {[%emt 0:06:44]} Rd8 {[%emt 0:08:48]} 22. Kf1 {[%emt 0:11:28]} g6 {[%emt 0:07:07]} 23. Nb2 {[%emt 0:01:21]} Ra5 {[%emt 0:01:26]} 24. Bc4 {[%emt 0:04:30]} Bg7 {[%emt 0:05:38]} 25. b4 {[%emt 0:05:50]} Ra3 {[%emt 0:03:43]} 26. Bxe6 {[%emt 0:03:01]} fxe6 {[%emt 0:01:22]} 27. Nbc4 {[%emt 0:00:01]} Ra4 {[%emt 0:01:19]} 28. a3 {[%emt 0:01:22]} Bh6 {[%emt 0:01:04]} 29. Na5 {[%emt 0:02:57]} Bxe3 {[%emt 0:03:10]} 30. fxe3 {[%emt 0:00:02]} Rf8+ {[%emt 0:00:06]} 31. Kg1 {[%emt 0:00:22]} Nc2 {[%emt 0:01:16]} 32. Rac1 {[%emt 0:02:18]} Nxe3 {[%emt 0:00:10]} 33. Rd3 {[%emt 0:00:23]} Ng4 {[%emt 0:01:38]} 34. Nc6+ {[%emt 0:01:17]} Ke8 {[%emt 0:02:36]} 35. Rxd6 {[%emt 0:00:09]} Rf4 {[%emt 0:04:28]} 36. Rxe6+ {[%emt 0:01:17]} Kd7 {[%emt 0:00:25]} 37. Re7+ {[%emt 0:00:07]} Kd6 {[%emt 0:00:01]} 38. Ra7 {[%emt 0:00:32]} Rxa7 {[%emt 0:00:22]} 39. Nxa7 {[%emt 0:00:05]} Rxe4 {[%emt 0:00:11]} 40. Nc8+ {[%emt 0:00:33]} Ke6 {[%emt 0:00:40]} 41. b5 {[%emt 0:00:21]} Ra4 {[%emt 0:01:25]} 42. Rc3 {[%emt 0:00:10]} Rd4 {[%emt 0:00:24]} 43. g3 {[%emt 0:01:19]} Rd1+ {[%emt 0:00:05]} 44. Kg2 {[%emt 0:00:06]} Rd2+ {[%emt 0:00:43]} 45. Kf1 {[%emt 0:02:16]} e4 {[%emt 0:01:31]} 46. Ke1 {[%emt 0:03:43]} Rb2 {[%emt 0:00:37]} 47. Rc4 {[%emt 0:04:32]} Nf2 {[%emt 0:02:26]} 48. b6 {[%emt 0:02:54]} e3 {[%emt 0:00:55]} 49. Rc3 {[%emt 0:00:50]} Ke5 {[%emt 0:07:34]} 1/2-1/2